Cogmind - Beta 15 @@@ ROGUE MODE // 2025.09.19 @ 08:21:35 Player: Possibly A Hive Mind Result: Destroyed self with YOLO Cannon Performance ------------- Evolutions (0) 0 Regions Visited (4) 800 Robots Destroyed (26) 130 Value Destroyed (536) 536 Prototype IDs (26) 520 Alien Tech Used (0) 0 Bonus (241) 241 TOTAL SCORE: 2227 Bonus ------- Aligned with FarCom 300 Friendly Fire -59 Cogmind --------- Core Integrity 0/250 Matter 203/300 Energy 5/265 System Corruption 0% Temperature Cool (20) Movement Walking (190) Ox1 Location -9/Mines Parts ------- > --- POWER (1) -------- Improved Ion Engine > --- PROPULSION (2) --- Aluminum Leg Aluminum Leg > --- UTILITY (2) ------ Medium Storage Unit Signal Interpreter > --- WEAPON (2) ------- YOLO Cannon > --- INVENTORY (10) --- Light Treads Aluminum Leg Improved Heat Sink Core Shielding Sensor Drone Bay Light Assault Rifle Mining Laser Peak State ------------ > --- POWER ------------ Improved Ion Engine > --- PROPULSION ------- Aluminum Leg Aluminum Leg > --- UTILITY ---------- Medium Storage Unit Signal Interpreter > --- WEAPON ----------- YOLO Cannon > --- INVENTORY -------- Light Treads Aluminum Leg Improved Heat Sink Core Shielding Sensor Drone Bay Light Assault Rifle Mining Laser [Rating: 27] Favorites ----------- Power Light Ion Engine Engine Light Ion Engine Propulsion Aluminum Leg Treads Light Treads Leg Aluminum Leg Hover Unit Hover Unit Flight Unit Flight Unit Utility Signal Interpreter Device Improved Heat Sink Storage Small Storage Unit Processor Signal Interpreter Weapon Light Assault Rifle Energy Gun EM Pulse Gun Energy Cannon YOLO Cannon Ballistic Gun Light Assault Rifle Ballistic Cannon Light Cannon Launcher Grenade Launcher Special Weapon Mining Laser Build | -11 -10 -10 -10 -9 ------- Run | Yrd Mat Min Exi Min Slots Evolved . | . . . . . Power . | . . . . . Propulsion . | . . . . . Utility . | . . . . . Weapon . | . . . . . Parts Attached 40 | 5 19 11 1 4 Power 4 | . 2 1 . 1 Engine 4 | . 2 1 . 1 Core . | . . . . . Reactor . | . . . . . Propulsion 15 | 2 8 5 . . Treads 2 | . 1 1 . . Leg 5 | 2 1 2 . . Wheel . | . . . . . Hover 2 | . 2 . . . Flight 6 | . 4 2 . . Utility 7 | 1 4 1 1 . Device 2 | . 2 . . . Storage 4 | 1 1 1 1 . Processor 1 | . 1 . . . Hackware . | . . . . . Protection . | . . . . . Artifact . | . . . . . Weapon 14 | 2 5 4 . 3 Energy Gun 3 | 2 . . . 1 Energy Cannon 1 | . . . . 1 Ballistic Gun 4 | . 2 2 . . Ballistic Cannon 2 | . 2 . . . Launcher 3 | . 1 1 . 1 Special Weapon 1 | . . 1 . . Impact Weapon . | . . . . . Slashing Weapon . | . . . . . Piercing Weapon . | . . . . . Special Melee Weapon . | . . . . . Unidentified Prototypes . | . . . . . Parts Lost 11 | . 2 6 . 3 Power 2 | . . 1 . 1 Propulsion 5 | . 1 4 . . Utility . | . . . . . Weapon 4 | . 1 1 . 2 Highest Loss Streak 4 | . 1 4 . 3 To Critical Strikes . | . . . . . Average Backups 8 | 4 7 7 9 8 Power . | 1 1 . . . Propulsion 1 | 2 2 1 2 2 Utility 1 | . 1 1 3 3 Weapon 3 | . 2 4 4 3 Tool/Special . | . . . . . Unused Backups 10 | . 4 2 1 3 Power . | . . . . . Propulsion 4 | . 4 . . . Utility 3 | . . . . 3 Weapon 2 | . . 1 1 . Tool/Special 1 | . . 1 . . Average Slot Usage (%) 99 | . 98 99 100 95 Engine 13 | . 13 13 14 11 Treads 1 | . . 7 . . Leg 11 | . 6 1 28 28 Hover 7 | . 15 . . . Flight 7 | . 5 18 . . Device 2 | . 2 5 . . Storage 13 | . 15 8 14 14 Processor 11 | . 9 14 14 14 Energy Gun 2 | . 5 . . . Ballistic Gun 18 | . 9 24 28 21 Ballistic Cannon 5 | . 11 . . . Peak Build Rating 27 | 5 9 10 10 27 Average Rating 8 | 3 7 8 8 13 On Entrance 6 | . 5 9 8 10 Naked Turns . | . . . . . Heaviest Build 28 | 9 19 15 15 28 Greatest Support 20 | 20 20 20 20 20 Greatest Overweight (x) 1 | . 1 1 . 1 Average Overweight (x) . | . . . . . Largest Inventory Capacity 20 | 8 8 10 20 10 Average Capacity 8 | 6 7 7 10 10 Most Carried 10 | 8 8 10 10 10 Average Carried 8 | 4 7 7 9 9 Final Capacity 10 | 8 5 10 10 10 Final Carried 10 | 7 5 10 10 7 Class Distribution -------------------- 64% | Mutant 35% | Scavenger-Mutant Dominant Class ---------------- Mutant | -10/Materials Mutant | -10/Mines Scavenger-Mutant | -10/Exiles Scavenger-Mutant | -9/Mines Resources | -11 -10 -10 -10 -9 ----------- Run | Yrd Mat Min Exi Min Matter Collected 1159 | 243 709 189 . 18 Remotely . | . . . . . Salvage Created 676 | . 462 155 . 59 Parts 37 | . 24 12 . 1 Haulers Intercepted 2 | . 2 . . . Recyclers Shooed 1 | . 1 . . . Parts Field Recycled . | . . . . . Retrieved Matter . | . . . . . Parts Self-Destructed . | . . . . . Prevented . | . . . . . Kills | -11 -10 -10 -10 -9 ------- Run | Yrd Mat Min Exi Min Combat Hostiles Destroyed 21 | . 8 7 . 6 Guns 10 | . 3 6 . 1 Cannons 7 | . 5 . . 2 AOE 4 | . . 1 . 3 Classes Destroyed 9 | . 6 1 . 2 Worker 4 | . 4 . . . Hauler 2 | . 2 . . . Operator 1 | . 1 . . . Watcher 3 | . 3 . . . Swarmer 6 | . 3 3 . . Grunt 7 | . 5 2 . . Sentry 2 | . . 2 . . Zionite 1 | . . . . 1 Assembled 6 | . . . . 6 Best Kill Streak 6 | . 3 2 . 6 Combat Bots Only 6 | . 3 2 . 6 Max Kills in Single Turn 3 | . 1 1 . 3 Gunslinging . | . . . . . Exploded 1 | . . 1 . 1 Melee . | . . . . . Uniques/NPCs Destroyed . | . . . . . Combat | -11 -10 -10 -10 -9 -------- Run | Yrd Mat Min Exi Min Hostile Shots Fired 117 | . 45 50 . 22 Missed 30 | . 12 15 . 3 Hits 87 | . 33 35 . 19 Melee 2 | . . . . 2 Projectile 85 | . 33 35 . 17 Critical Strikes 2 | . 1 . . 1 Damage Taken 1332 | . 425 424 . 483 Core 304 | . 59 143 . 102 Absorbed by Shields . | . . . . . Core Remaining (%) 100 | 100 . . . . Volleys Fired 107 | 1 57 44 . 5 Largest 2 | 1 2 2 . 2 Hottest 100 | 40 80 100 . 100 Shots Fired 189 | 1 114 67 . 7 Gun 109 | 1 64 41 . 3 Cannon 51 | . 49 . . 2 Launcher 9 | . 1 6 . 2 Special 20 | . . 20 . . Kinetic 115 | . 72 41 . 2 Thermal 23 | . . 20 . 3 Explosive 9 | . 1 6 . 2 Electromagnetic 42 | 1 41 . . . Robot Hit Streak 12 | . 6 12 . 2 Robot Miss Streak 5 | 1 5 3 . 2 Penetration Max . | . . . . . Secondary Targets 1 | . . 1 . . Max Gunslinging Chain 1 | . . 1 . . Shots Hit Robots 97 | . 63 31 . 3 Core Hits 50 | . 25 14 . 11 Critical Kills . | . . . . . Critical Parts Destroyed . | . . . . . Critical Strikes . | . . . . . Melee Attacks . | . . . . . Impact . | . . . . . Slashing . | . . . . . Piercing . | . . . . . Sneak Attacks . | . . . . . Combat Hostiles . | . . . . . Follow-up Attacks . | . . . . . Damage Inflicted 2071 | . 1080 381 . 610 Guns 681 | . 464 207 . 10 Cannons 685 | . 489 . . 196 Explosions 705 | . 127 174 . 404 Melee . | . . . . . Ramming . | . . . . . Kinetic 832 | . 615 207 . 10 Thermal 625 | . 98 . . 527 Explosive 276 | . 29 174 . 73 Electromagnetic 338 | . 338 . . . Impact . | . . . . . Slashing . | . . . . . Piercing . | . . . . . Highest Corruption . | . . . . . Average Corruption . | . . . . . Corruption Purged . | . . . . . Corruption Blocked . | . . . . . Overload Shots . | . . . . . Overflow Damage 61 | . . . . 61 Projectiles . | . . . . . Explosions 61 | . . . . 61 Melee . | . . . . . Knockbacks 5 | . 5 . . . Impact . | . . . . . Kinetic 5 | . 5 . . . Secondary . | . . . . . Self-Inflicted Damage 190 | . . . . 190 Shots 4 | . . . . 4 Rammed . | . . . . . Targets Rammed . | . . . . . Kicked . | . . . . . Crushed . | . . . . . Highest Temperature 322 | . 322 82 . 20 Average Temperature 59 | . 74 31 . 14 Received Heat Transfer 377 | . 225 132 . 20 Effects 2 | . 2 . . . Energy Bleed 1 | . 1 . . . Damage (minor) 1 | . 1 . . . Siege Activations . | . . . . . Martial Activations . | . . . . . Shielding Activations . | . . . . . Robots Disrupted . | . . . . . Combat Hostiles . | . . . . . Robots Corrupted . | . . . . . Combat Hostiles . | . . . . . Parts Fried 2 | . 2 . . . Impact Corruptions . | . . . . . Robots Melted . | . . . . . Combat Hostiles . | . . . . . Parts Melted . | . . . . . Heat Transferred 630 | . 150 . . 480 Parts Sabotaged . | . . . . . Parts Stolen . | . . . . . Parts Stripped . | . . . . . Power Chain Reactions 2 | . 2 . . . Alert | -11 -10 -10 -10 -9 ------- Run | Yrd Mat Min Exi Min Maximum Alert Level . | . . . . . Low Security (%) 100 | 100 100 100 . 100 Level 1 . | . . . . . Level 2 . | . . . . . Level 3 . | . . . . . Level 4 . | . . . . . Level 5 . | . . . . . High Security . | . . . . . Max Security . | . . . . . Peak Influence 114 | . 73 114 . 12 Initial . | . . . . . Average 20 | . 19 25 . 1 Influence Increases 640 | . 371 252 . 17 Destroy 0b10 Robot/C 300 | . 160 140 . . Destroy 0b10 Robot/NC 50 | . 50 . . . Destroy Leader 60 | . 50 10 . . Successful Hack 24 | . 24 . . . Disable Machine 75 | . 75 . . . Destroy Structure 56 | . 12 27 . 17 Partial Spotted 15 | . . 15 . . Lose Combat Pursuer 60 | . . 60 . . Influence Decreases 640 | . 371 228 24 17 Entered New Map 24 | . . . 24 . Time Decay 534 | . 351 178 . 5 Lost Part 82 | . 20 50 . 12 Squads Dispatched 1 | . 1 . . . Investigation . | . . . . . Extermination . | . . . . . Reinforcement 1 | . 1 . . . Assault . | . . . . . Garrison . | . . . . . Intercept . | . . . . . Searches Triggered . | . . . . . Construction Impeded . | . . . . . Haulers Reinforced . | . . . . . Active Scanning Responses . | . . . . . Cargo Convoy Interrupts . | . . . . . Stealth | -11 -10 -10 -10 -9 --------- Run | Yrd Mat Min Exi Min Distress Signals . | . . . . . Communications Jammed . | . . . . . Distress Signals . | . . . . . Times Spotted 39 | . 16 10 . 13 Peak Tracking Total 12 | . 3 3 . 12 Tactical Retreats 2 | . . 2 . . Traps | -11 -10 -10 -10 -9 ------- Run | Yrd Mat Min Exi Min Traps Triggered 5 | . 5 . . . Indirectly . | . . . . . Trap Hack Attempts . | . . . . . Triggered . | . . . . . Disarmed . | . . . . . Reprogrammed . | . . . . . Reused . | . . . . . Traps Extracted . | . . . . . Installed . | . . . . . Triggered . | . . . . . Machines | -11 -10 -10 -10 -9 ---------- Run | Yrd Mat Min Exi Min Machines Disabled 7 | . 5 2 . . Max in Single Turn 2 | . 1 2 . . Machines Repaired . | . . . . . Machines Dismantled . | . . . . . Machines Sabotaged . | . . . . . Overloaded Fab Kills . | . . . . . Hacking | -11 -10 -10 -10 -9 --------- Run | Yrd Mat Min Exi Min Machines Accessed 12 | . 6 . 5 1 Terminals 4 | . 4 . . . Fabricators . | . . . . . Repair Stations . | . . . . . Recycling Units 2 | . 2 . . . Scanalyzers . | . . . . . Garrison Access . | . . . . . Total Hacks 71 | . 20 . 50 1 Successful 65 | . 14 . 50 1 Failed 6 | . 6 . . . Catastrophic 1 | . 1 . . . Database Lockouts . | . . . . . Manual 1 | . . . 1 . Terminals 17 | . 17 . . . Fabricators . | . . . . . Repair Stations . | . . . . . Recycling Units 3 | . 3 . . . Scanalyzers . | . . . . . Garrison Access . | . . . . . Terminal Hacks 62 | . 11 . 50 1 Record 51 | . 2 . 49 . Prototype ID Bank 3 | . 3 . . . Open Door 1 | . . . . 1 Alert Level 1 | . 1 . . . Locate Traps 2 | . 2 . . . Dispatch Records 1 | . 1 . . . Hauler Manifests 1 | . 1 . . . Zone Layout 1 | . 1 . . . Proto ID Catalog 1 | . . . 1 . Fabricator Hacks . | . . . . . Repair Station Hacks . | . . . . . Recycling Unit Hacks 3 | . 3 . . . Process 1 | . 1 . . . Report Inventory 1 | . 1 . . . Retrieve Matter 1 | . 1 . . . Scanalyzer . | . . . . . Garrison Access Hacks . | . . . . . Unauthorized Hacks . | . . . . . Terminals . | . . . . . Fabricators . | . . . . . Repair Stations . | . . . . . Recycling Units . | . . . . . Scanalyzers . | . . . . . Garrison Access . | . . . . . Data Cores Recovered . | . . . . . Used . | . . . . . Hacking Detections 3 | . 3 . . . Full Trace Events 1 | . 1 . . . Feedback Events . | . . . . . Feedback Blocked . | . . . . . Robot Schematics Acquired . | . . . . . Robots Built . | . . . . . Authchips . | . . . . . Time . | . . . . . Total Robot Build Rating . | . . . . . Part Schematics Acquired . | . . . . . Parts Built . | . . . . . Authchips . | . . . . . Time . | . . . . . Total Part Build Rating . | . . . . . Parts Repaired . | . . . . . Time . | . . . . . Parts Recycled . | . . . . . Recycled Matter 9 | . 9 . . . Retrieved Matter 9 | . 9 . . . Retrieved Components . | . . . . . Parts Scanalyzed . | . . . . . Part Schematics Acquired . | . . . . . Parts Damaged . | . . . . . Bothacking | -11 -10 -10 -10 -9 ------------ Run | Yrd Mat Min Exi Min Used RIF Installer . | . . . . . Robots Hacked . | . . . . . Non-combat . | . . . . . Combat . | . . . . . Robot Hacks Applied . | . . . . . Relay Couplers Released . | . . . . . Fabnet Peak Effective % . | . . . . . Robots Rewired . | . . . . . Allies Hacked . | . . . . . Hacks Repelled . | . . . . . Allies | -11 -10 -10 -10 -9 -------- Run | Yrd Mat Min Exi Min Total Allies . | . . . . . Largest Group . | . . . . . Highest-Rated Group . | . . . . . Highest-Rated Ally . | . . . . . Total Orders . | . . . . . Ally Attacks . | . . . . . Total Damage . | . . . . . Kills . | . . . . . Allies Corrupted . | . . . . . Allies Melted . | . . . . . Intel | -11 -10 -10 -10 -9 ------- Run | Yrd Mat Min Exi Min Active Infowar (turns) 123 | . 123 . . . Structural 123 | . 123 . . . Robot Analysis Total . | . . . . . Derelict Logs Recovered 1 | . . 1 . . Drone Launches . | . . . . . Drone Recoveries . | . . . . . Exploration | -11 -10 -10 -10 -9 ------------- Run | Yrd Mat Min Exi Min Turns Passed 2617 | 72 1199 613 683 50 Spaces Moved 2134 | 47 932 569 563 23 Core 4 | 4 . . . . Treads 146 | . 4 142 . . Legs 778 | 43 129 20 563 23 Wheels . | . . . . . Hover 488 | . 488 . . . Flight 718 | . 311 407 . . Fastest Speed 37 | 50 37 37 120 120 Average Speed 99 | 114 101 71 120 129 Slowest Speed 190 | 120 190 190 120 190 Overloaded Moves . | . . . . . Propulsion Burnouts . | . . . . . Robots Hopped 4 | . 4 . . . Potential Cave-ins . | . . . . . Cave-ins Triggered . | . . . . . Exploration Rate (%) 58 | 4 99 89 92 10 Regions Visited 4 Branch Regions 3 Pre-discovered Areas 2 | . . 1 1 . Known Exits Taken 3 | . 1 1 1 . Unknown Exits Taken 1 | 1 . . . . Scrap Searched 1 | . . 1 . . Spaces Dug . | . . . . . Terrain Destroyed 81 | . 10 29 . 42 Melee . | . . . . . Projectile 3 | . . 3 . . AOE 78 | . 10 26 . 42 Terrain Rammed . | . . . . . Walls Destroyed . | . . . . . Machines Disabled . | . . . . . Actions | -11 -10 -10 -10 -9 --------- Run | Yrd Mat Min Exi Min Total 2418 | 64 1070 676 571 37 Wait 26 | . 4 21 . 1 Move 2122 | 46 923 568 562 23 Hop 4 | . 4 . . . Pick Up 67 | 12 31 19 3 2 Fast Attach . | . . . . . Attach 32 | 5 17 7 . 3 Detach 1 | . 1 . . . Swap 29 | . 17 9 2 1 Drop 30 | . 16 8 4 2 Fire 107 | 1 57 44 . 5 Melee . | . . . . . Ram . | . . . . . Kick . | . . . . . Crush . | . . . . . Escape Stasis . | . . . . . Rewire . | . . . . . Trap . | . . . . . Miscellaneous . | . . . . . Route ------- -11/Scrapyard -10/Materials (discovered 4 exits: *Mat x3 / *Min) -10/Mines (discovered 3 exits: *Mat / *Exi / *Sub) -10/Exiles (discovered 2 exits: *Min x2) -9/Mines History --------- Turn | Location | Event 2 | -11/Scrapyard | Met Revision 17 8 | -11/Scrapyard | Discovered new exit (range 15) 73 | -11/Scrapyard | Entered Materials 228 | -10/Materials | Discovered new exit (range 16) 303 | -10/Materials | Build established: Mutant 437 | -10/Materials | Discovered new exit (range 9) 531 | -10/Materials | Identified exit to Materials 948 | -10/Materials | Discovered exit to Materials (range 6) 1083 | -10/Materials | Discovered new exit (range 16) 1214 | -10/Materials | Identified exit to Mines 1272 | -10/Materials | Entered Mines 1279 | -10/Mines | Received a Rocket Launcher from a helpful Derelict 1368 | -10/Mines | Core integrity fell below 50% 1417 | -10/Mines | Lost 4 parts (1p2n1w) 1433 | -10/Mines | Discovered exit to Materials (range 15) 1434 | -10/Mines | Learned location of Storage (-8) 1467 | -10/Mines | Discovered new exit (range 4) 1472 | -10/Mines | Identified exit to Subcaves 1581 | -10/Mines | Core integrity fell below 20% 1728 | -10/Mines | Excavation squad dispatched 1728 | -10/Mines | A large section of the Mines collapsed 1828 | -10/Mines | Learned Materials stockpile data 1880 | -10/Mines | Deemed a non-threat by the Exiles lab entrance 1880 | -10/Mines | Discovered new exit (range 5) 1884 | -10/Mines | Identified exit to Exiles 1885 | -10/Mines | Entered Exiles 1903 | -10/Exiles | Discovered new exit (range 15) 1919 | -10/Exiles | Identified exit to Mines 1943 | -10/Exiles | Met 8R-AWN 1965 | -10/Exiles | Met EX-HEX 2038 | -10/Exiles | Met EX-DEC 2070 | -10/Exiles | Visited The Gauntlet 2115 | -10/Exiles | Build established: Scavenger-Mutant 2201 | -10/Exiles | Learned location of Zion (-7) 2287 | -10/Exiles | Discovered exit to Mines (range 12) 2371 | -10/Exiles | Met EX-BIN 2388 | -10/Exiles | Aligned with FarCom system 2389 | -10/Exiles | Given EX-Vault access code 2449 | -10/Exiles | Opened EX-Vault 2459 | -10/Exiles | Found YOLO Cannon 2483 | -10/Exiles | Warned to stay clear of 0b10 Research branches 2500 | -10/Exiles | Exiles lab attacked by MAIN.C 2568 | -10/Exiles | Left Exiles lab with YOLO Cannon 2568 | -10/Exiles | Entered Mines 2573 | -9/Mines | Found the Drone Emporium 2578 | -9/Mines | Found Prototype Device 2585 | -9/Mines | Assembled infested the area 2596 | -9/Mines | Met a Derelict bent on vengeance 2618 | -9/Mines | Destroyed self with YOLO Cannon Last Messages --------------- there's no Warlord to save us!" as-24436 destroyed. as-16147 destroyed. Lgt. Assault Rifle destroyed. The unstable cave ceiling collapses. Grenade Launcher destroyed. Dropped Med. Laser. as-52651 destroyed. Lgt. Ion Engine destroyed. Destroyed Lgt. Ion Engine. Destroyed Asb. Hover Unit. as-61749 destroyed. DK-RAY destroyed. [Achievement: Backstab] Acquired 18 matter. Machine disabled. HC-BHB(g) destroyed. Acquired Imp. Ion Engine. as-59330 destroyed. as-66215 destroyed. Map ----- +----------------------------------------------------+ | ????????????????????????????????????? | | ????????????????????????????????????? | | ????????????????????????????????????? | | ????????????????????????????????????? | | ????????????????????????????????????? | | ????????????????????????????????????? | | ?????????????????????#??????????????? | | ????????????????????? ??????????????? | | ????????????????????# #?????????????? | | ????????????????????# #?????????????? | | ????????????????????# #?????????????? | | ?????????????????#### #?????????????? | | ????????????????## #?????????????? | | ????????????????# #?????????????? | | ????????????????? #?????????????? | | ?????????????????? ##????????????? | | ??????????????????# ##???????????? | | ?????????????????## ##??????????? | | ??????????????#### d #??????????? | | ?????????????##" d #??????????? | | ?????????????#" #??????????? | | ?????????????#" ##??????????? | | ?????????????#" % #???????????? | | ?????????????#"! # ###?????????? | | ?????????????##""# #?????????? | | ??????????????#### ##@###???????? | | ?????????????????# a % ##??????? | | ?????????????????# #;aa #??????? | | ?????????????????# # aa #??????? | | ????????????????# ## % #??????? | | ???????????????# ## a #??????? | | ???????????????# ## #??????? | | ???????????????## ?## ##??????? | | ????????????????## ??# ###???????? | | ?????????????????# ??## #?????????? | | ?????????????????# ???##a ?????????? | | ?????????????????# ???? ?????????? | | ?????????????????# ???? ?????????? | | ?????????????????? ???? ?????????? | | ????????????????????????# ?????????? | | ?????????????????????????# ?????????? | | ??????????????????????????#?????????? | | ????????????????????????????????????? | | ????????????????????????????????????? | | ????????????????????????????????????? | | ????????????????????????????????????? | | ????????????????????????????????????? | | ????????????????????????????????????? | | ????????????????????????????????????? | | ????????????????????????????????????? | +----------------------------------------------------+ Best States ------------- Heat Dissipation 39 Energy Generation 10 Energy Capacity 250 Matter Stores 446 Matter Capacity 450 Sight Range 16 Terrain Scan Density 10 Evasion (%) 62 Recoil Reduction 1 Item Schematics ----------------- None Robot Schematics ------------------ None Fabricated ------------ Nothing Repaired ---------- Nothing Alien Tech Used ----------------- None Achievements -------------- Backstab Challenges ------------ None Game ------ Seed AblativeImpactOptics Manual? 0 Play Time 00:35:32 Cumulative 16.8 hours Start 2025.09.19 @ 07:47:22 End 2025.09.19 @ 08:21:35 Sessions 1 Manual Loads 0 Difficulty Rogue Special Mode None Game No. 17 Rogue 17 Adventurer 0 Explorer 0 Win Type - Total 0 Types 0/0/0/0/0/0/0/0/0/0 Lore% 12 Gallery% 18 Achievement% 14 Wizard Run 0 Options --------- Layout 1 ASCII 0 Keyboard 0 Movement Mouse Keybinds 0 Fullscreen 1 Font 24/Smallcaps Map View 50x35 Zoom Use 0% Tactical HUD 0 Map Filters NONE Filters NONE Steam 1 RUN: cd0e5895-98cc-4b51-9181-aa98357efb54